bitfinex-derivatives/quotes_BTCF0:USTF0_20250902
["timestamp","ask_amount","ask_price","bid_price","bid_amount"]
[1756814658523,2.01298614,109790.0,109780.0,0.08316]
[1756814659325,2.01898614,109790.0,109780.0,0.08416]
[1756814659627,1.73186845,109790.0,109780.0,0.08416]
[1756814660430,2.09266845,109790.0,109780.0,0.001]
[1756814661120,2.09266845,109790.0,109780.0,0.02529]
[1756814661318,2.09266845,109790.0,109780.0,0.001]
[1756814662029,0.048,109770.0,109760.0,0.01812442]
[1756814662330,2.03776788,109770.0,109760.0,0.04241442]
[1756814662826,2.28776788,109770.0,109740.0,0.3608]
[1756814663031,2.28776788,109770.0,109740.0,0.44396]
[1756814663032,0.45392788,109750.0,109740.0,0.44396]
[1756814663332,0.94849,109750.0,109740.0,0.44396]
[1756814664017,1.30849,109750.0,109740.0,0.44396]
[1756814664222,0.94849,109750.0,109740.0,0.44396]
[1756814664823,1.76710759,109750.0,109740.0,0.44396]
[1756814665029,1.81710759,109750.0,109740.0,0.44396]
[1756814665336,2.05820788,109750.0,109740.0,0.04915]
[1756814665723,2.17925245,109750.0,109740.0,0.04915]
[1756814666033,0.93577245,109750.0,109740.0,0.05015]
[1756814666229,1.79973245,109750.0,109740.0,0.05015]
[1756814666532,1.80441245,109750.0,109740.0,0.05015]
[1756814666721,2.14441245,109750.0,109740.0,0.05015]
[1756814666922,1.78361245,109750.0,109740.0,0.05015]
[1756814667227,0.21005457,109750.0,109740.0,0.08416]
[1756814667428,1.80437245,109750.0,109740.0,0.08416]
[1756814668224,2.18737245,109750.0,109740.0,0.05015]
[1756814668927,1.32377245,109750.0,109740.0,0.05015]
[1756814669134,0.94377245,109750.0,109740.0,0.05015]
[1756814669332,1.44577245,109750.0,109740.0,0.05015]
[1756814669627,0.21305457,109750.0,109740.0,0.05015]
[1756814669830,1.44557245,109750.0,109740.0,0.05015]
[1756814670534,1.44561245,109750.0,109740.0,0.05015]
[1756814670732,1.44545245,109750.0,109740.0,0.05015]
[1756814671027,1.07553457,109750.0,109740.0,0.08416]
[1756814671234,1.44545245,109750.0,109740.0,0.08416]
[1756814671736,0.96297245,109750.0,109740.0,0.08416]
[1756814672032,1.82497245,109750.0,109740.0,0.05015]
[1756814672632,0.96297245,109750.0,109740.0,0.05015]
[1756814672833,1.82469245,109750.0,109740.0,0.08416]
[1756814673034,1.82469245,109750.0,109740.0,0.05015]
[1756814673224,1.82473245,109750.0,109740.0,0.001]
[1756814673731,2.18553245,109750.0,109740.0,0.001]
[1756814673934,2.19082245,109750.0,109730.0,0.00455]
[1756814674133,0.81472788,109740.0,109730.0,0.00455]
[1756814674435,1.98656788,109740.0,109730.0,0.00455]
[1756814676037,0.03506,109730.0,109710.0,0.39481]
[1756814676226,1.31492788,109720.0,109710.0,0.4428]
[1756814676534,1.64392788,109720.0,109710.0,0.4428]
[1756814677228,1.64292788,109720.0,109710.0,0.082]
[1756814677424,1.64292788,109720.0,109710.0,0.02335]
[1756814677625,0.08373,109710.0,109700.0,0.46308136]
[1756814677828,0.78364788,109710.0,109700.0,0.46308136]
[1756814678324,1.31596788,109710.0,109700.0,0.46308136]
[1756814678531,0.94605,109710.0,109700.0,0.46308136]
[1756814678734,1.38897172,109710.0,109700.0,0.46308136]
[1756814679132,1.76897172,109710.0,109700.0,0.46308136]
[1756814679326,0.15593384,109710.0,109700.0,0.46308136]
[1756814679532,1.01805384,109710.0,109700.0,0.46408136]
[1756814679726,1.01905384,109710.0,109700.0,0.46408136]
[1756814679927,1.01905384,109710.0,109700.0,0.44554]
[1756814680139,1.02005384,109710.0,109700.0,0.44654]
[1756814681226,1.02970335,109710.0,109700.0,0.44654]
[1756814681733,1.02906335,109710.0,109700.0,0.44654]
[1756814681928,1.38906335,109710.0,109700.0,0.44654]
[1756814682130,1.38806335,109710.0,109700.0,0.44554]
[1756814682335,1.38906335,109710.0,109700.0,0.44554]
[1756814682923,1.38806335,109710.0,109700.0,0.44554]
[1756814683135,1.39206335,109710.0,109700.0,0.44554]
[1756814683337,1.39606335,109710.0,109700.0,0.44554]
[1756814683933,0.17458335,109710.0,109700.0,0.71024]
[1756814684138,0.08220384,109710.0,109700.0,1.41015788]
[1756814686230,0.08220384,109710.0,109700.0,1.09015788]
[1756814686434,0.08220384,109710.0,109700.0,2.36177898]
[1756814686736,0.009,109710.0,109700.0,2.27063788]
[1756814687234,0.0802064,109710.0,109700.0,0.46024]
[1756814687433,0.09273,109710.0,109700.0,0.47024]
[1756814687634,0.09273,109710.0,109700.0,0.46024]
[1756814688341,0.03303,109710.0,109700.0,0.46024]
[1756814688728,0.009,109710.0,109700.0,0.71024]
[1756814689127,0.09273,109710.0,109700.0,0.44554]
[1756814689532,0.09273,109710.0,109700.0,0.04899]
[1756814689533,0.82264788,109710.0,109700.0,0.04899]
[1756814689738,0.82264788,109710.0,109700.0,0.02435]
[1756814689937,1.93244788,109710.0,109700.0,0.04899]
[1756814690131,1.93244788,109710.0,109700.0,0.40979]
[1756814690331,2.00411354,109710.0,109700.0,0.40979]
[1756814691040,2.00411354,109710.0,109700.0,0.38515]
[1756814691837,1.64395354,109710.0,109700.0,0.44554]
[1756814692435,1.96395354,109710.0,109700.0,0.44554]
[1756814692931,1.96395354,109710.0,109700.0,0.38515]
[1756814693437,1.96395354,109710.0,109700.0,0.001]
[1756814694138,2.32475354,109710.0,109700.0,0.001]
[1756814694537,2.32475354,109710.0,109680.0,0.39655]
[1756814694538,0.03502,109700.0,109680.0,0.39655]
[1756814694840,1.31220788,109690.0,109680.0,0.76879]
[1756814695033,1.70264163,109690.0,109680.0,0.40879]
[1756814695850,1.70264163,109690.0,109680.0,0.3608]
[1756814696041,0.08369,109680.0,109670.0,0.44458]
[1756814696345,0.08369,109680.0,109670.0,0.76458]
[1756814697046,0.02403,109680.0,109670.0,0.72883]
[1756814697241,0.02543375,109690.0,109670.0,2.20702788]
[1756814697447,0.02543375,109690.0,109680.0,0.77870788]
[1756814697636,0.02243375,109690.0,109680.0,1.18445788]
[1756814698041,0.02043375,109690.0,109680.0,1.18445788]
[1756814698242,0.02043375,109690.0,109680.0,0.81445788]
[1756814698442,0.02043375,109690.0,109680.0,0.44454]
[1756814698640,0.02043375,109690.0,109680.0,0.81445788]
[1756814698948,0.36243375,109690.0,109680.0,0.44454]
[1756814699149,0.10512375,109690.0,109680.0,0.44454]
[1756814699643,0.47504163,109690.0,109680.0,0.40879]
[1756814699840,0.47504163,109690.0,109680.0,0.001]
[1756814699841,2.29660163,109690.0,109680.0,0.001]
[1756814701937,1.92668375,109690.0,109680.0,0.001]
[1756814702143,2.31771201,109690.0,109680.0,0.001]
[1756814702352,2.43543399,109690.0,109680.0,0.001]
[1756814705048,1.32767399,109690.0,109680.0,0.04899]
[1756814705246,1.3373076,109690.0,109680.0,0.44554]
[1756814705550,2.04692163,109690.0,109680.0,0.08474]
[1756814705748,2.04692163,109690.0,109680.0,0.04899]
[1756814705952,0.82804163,109690.0,109680.0,0.02435]
[1756814706141,1.31624375,109690.0,109680.0,0.08471]
[1756814706341,1.68616163,109690.0,109680.0,0.08471]
[1756814706946,2.04696163,109690.0,109680.0,0.08471]
[1756814707152,1.18884163,109690.0,109680.0,0.08471]
[1756814707452,2.04812163,109690.0,109680.0,0.04727]
[1756814707857,2.04812163,109690.0,109680.0,0.001]
[1756814708563,2.04812163,109690.0,109680.0,0.02363]
[1756814708753,2.04812163,109690.0,109680.0,0.04655]
[1756814709246,0.81892375,109690.0,109680.0,0.08399]
[1756814709451,0.07410375,109690.0,109680.0,1.06470788]
[1756814709644,0.02543375,109690.0,109680.0,1.06470788]
[1756814709840,0.02543375,109690.0,109680.0,0.69479]
[1756814710053,0.10751375,109690.0,109680.0,0.69479]
[1756814710548,0.04898375,109690.0,109680.0,0.69479]
[1756814710945,0.02543375,109690.0,109680.0,0.69479]
[1756814711145,0.02543375,109690.0,109680.0,1.40470788]
[1756814711653,0.02543375,109690.0,109680.0,1.06269218]
[1756814711849,0.02543375,109690.0,109680.0,2.34304998]
[1756814712444,0.02543375,109690.0,109680.0,2.40813892]
[1756814713149,0.02543375,109690.0,109680.0,2.34304998]
[1756814713348,0.02543375,109690.0,109680.0,2.40838966]
[1756814714351,0.02543375,109690.0,109680.0,2.34304998]
[1756814714552,0.09200078,109710.0,109700.0,0.09725]
[1756814714753,0.09200078,109710.0,109700.0,2.04543218]
[1756814714954,0.09200078,109710.0,109700.0,1.2520865]
[1756814715249,0.09200078,109710.0,109700.0,2.1105665]
[1756814715546,0.09200078,109710.0,109700.0,2.3605665]
[1756814715754,0.02033512,109710.0,109700.0,2.6705665]
[1756814716051,0.02333512,109710.0,109700.0,2.6705665]
[1756814716250,0.02333512,109710.0,109700.0,1.99266432]
[1756814716454,0.05735512,109710.0,109700.0,0.88418432]
[1756814716644,0.10541512,109710.0,109700.0,0.88418432]
[1756814716845,0.04688512,109710.0,109700.0,0.88418432]
[1756814717152,0.07139512,109710.0,109700.0,0.88418432]
[1756814717547,0.04688512,109710.0,109700.0,0.88518432]
[1756814717754,0.04988512,109710.0,109700.0,0.88518432]
[1756814718155,0.10841512,109710.0,109700.0,1.74830432]
[1756814718348,0.10841512,109710.0,109700.0,0.88518432]
[1756814718548,0.46841512,109710.0,109700.0,1.74810432]
[1756814718743,0.10541512,109710.0,109700.0,1.68377]
[1756814719454,0.10641512,109710.0,109700.0,1.68377]
[1756814719849,0.17821928,109710.0,109700.0,1.68377]
[1756814720460,0.17721928,109710.0,109700.0,1.68277]
[1756814720660,0.17721928,109710.0,109700.0,1.68377]
[1756814720661,0.18021928,109710.0,109700.0,1.68377]
[1756814720955,0.51021928,109710.0,109700.0,1.68293]
[1756814721156,0.18021928,109710.0,109700.0,1.68293]
[1756814722558,0.18021928,109710.0,109700.0,0.82085]
[1756814723363,0.18021928,109710.0,109700.0,0.46005]
[1756814724050,0.43021928,109710.0,109700.0,0.44579]
[1756814724259,0.75021928,109710.0,109700.0,0.44579]
[1756814724461,0.43021928,109710.0,109700.0,0.44579]
[1756814725154,0.45021928,109710.0,109700.0,0.08499]
[1756814725359,1.17892146,109710.0,109700.0,0.04755]
[1756814725552,1.50892146,109710.0,109700.0,0.04755]
[1756814725957,1.50892146,109710.0,109700.0,0.02463]
[1756814726158,1.50892146,109710.0,109700.0,0.08855]
[1756814726357,1.50892146,109710.0,109700.0,0.06563]
[1756814726554,1.50892146,109710.0,109700.0,0.043]
[1756814726760,2.36992146,109710.0,109700.0,0.043]
[1756814727964,2.36992146,109710.0,109700.0,0.00898]
[1756814729860,2.37000146,109710.0,109700.0,0.00898]
[1756814731869,1.50892146,109710.0,109700.0,0.00898]
[1756814732070,2.36988146,109710.0,109700.0,0.00898]
[1756814732268,1.50892146,109710.0,109700.0,0.00898]
[1756814732470,2.36928146,109710.0,109700.0,0.00898]
[1756814733566,2.36900146,109710.0,109700.0,0.00898]
[1756814734975,2.36892146,109710.0,109700.0,0.00898]
[1756814735571,2.36892146,109710.0,109680.0,0.03744]
[1756814735773,0.72870218,109690.0,109680.0,0.08299]
[1756814735967,1.90870218,109690.0,109680.0,0.08299]
[1756814736174,1.90870218,109690.0,109680.0,0.04555]
[1756814736373,1.5408,109690.0,109680.0,0.08257]
[1756814736576,1.90870218,109690.0,109680.0,0.08257]
[1756814737964,1.58842218,109690.0,109680.0,0.08257]
[1756814738165,1.96942218,109690.0,109680.0,0.08457]
[1756814738871,1.96942218,109690.0,109680.0,0.08357]
[1756814739079,1.97042218,109690.0,109680.0,0.08457]
[1756814739764,1.97242218,109690.0,109680.0,0.08357]
[1756814740366,1.59518218,109690.0,109680.0,0.08357]
[1756814740570,1.59506218,109690.0,109680.0,0.08357]
[1756814740775,1.92506218,109690.0,109680.0,0.08357]
[1756814741075,1.92506218,109690.0,109680.0,0.04655]
[1756814741575,1.92506218,109690.0,109680.0,0.02363]
[1756814741779,1.92506218,109690.0,109680.0,0.001]
[1756814742881,1.9450868,109690.0,109680.0,0.001]
[1756814743273,2.3058868,109690.0,109670.0,0.02471]
[1756814743469,0.72870218,109680.0,109670.0,0.02471]
[1756814743780,1.05870218,109680.0,109670.0,0.02471]
[1756814744477,1.17848492,109680.0,109670.0,4e-05]
[1756814744773,0.48058274,109680.0,109670.0,0.08588]
[1756814744984,0.85324,109680.0,109670.0,0.29886]
[1756814745175,0.85324,109680.0,109670.0,0.29786]
[1756814745384,0.85524,109680.0,109670.0,0.29886]
[1756814745575,0.85524,109680.0,109670.0,0.33588]
[1756814745775,0.85724,109680.0,109670.0,0.33588]
[1756814746181,1.22514218,109680.0,109670.0,0.00104]
[1756814746381,1.96594218,109680.0,109670.0,0.00104]
[1756814748369,2.08221723,109680.0,109670.0,0.00104]
[1756814749084,2.33221723,109680.0,109670.0,0.00104]
[1756814749382,2.32821723,109680.0,109670.0,4e-05]
[1756814749581,2.34129723,109680.0,109670.0,0.00104]
[1756814749885,1.48297723,109680.0,109670.0,0.00104]
[1756814750080,2.34113723,109680.0,109670.0,0.00104]
[1756814750777,1.48297723,109680.0,109670.0,0.00104]
[1756814750986,2.09105723,109680.0,109670.0,0.04886]
[1756814751183,1.23297723,109680.0,109670.0,0.00104]
[1756814751482,2.09101723,109680.0,109670.0,0.00104]
[1756814754280,2.34101723,109680.0,109670.0,0.00104]
[1756814755587,2.36190178,109680.0,109670.0,0.00104]
[1756814756784,1.50386178,109680.0,109670.0,0.00104]
[1756814756978,2.36198178,109680.0,109670.0,0.00104]
[1756814757379,2.36198891,109680.0,109670.0,0.00104]
[1756814757579,2.58735245,109680.0,109670.0,0.00104]
[1756814758881,2.33735245,109680.0,109670.0,0.08588]
[1756814759087,1.47923245,109680.0,109670.0,0.08588]
[1756814759392,2.33735245,109680.0,109670.0,0.08588]
[1756814760089,2.33735245,109680.0,109670.0,0.04886]
[1756814760292,2.33735245,109680.0,109670.0,0.00104]
[1756814761181,2.58735245,109680.0,109650.0,0.09915]
[1756814761380,0.65743286,109660.0,109650.0,0.09915]
[1756814761586,1.88621789,109660.0,109650.0,0.09915]
[1756814761988,1.88621789,109660.0,109650.0,0.06213]
[1756814762290,1.88621789,109660.0,109650.0,0.04782]
[1756814762586,2.18285075,109660.0,109650.0,0.02467]
[1756814762790,1.88621789,109660.0,109650.0,0.04782]
[1756814763689,1.88621789,109660.0,109650.0,0.09915]
[1756814763990,1.88821789,109660.0,109650.0,0.09915]
[1756814764775,1.59758503,109660.0,109650.0,0.09915]
[1756814764990,1.89421789,109660.0,109650.0,0.09915]
[1756814767680,1.89421789,109660.0,109650.0,0.04782]
[1756814768085,2.19085075,109660.0,109640.0,0.08413]
[1756814768390,0.59326572,109650.0,109640.0,0.08413]
[1756814768588,0.90326572,109650.0,109640.0,0.08413]
[1756814768788,1.27350239,109650.0,109640.0,0.04808]
[1756814769884,1.27350239,109650.0,109630.0,0.03605]
[1756814770086,1.15479286,109640.0,109620.0,0.42613432]
[1756814770285,1.15479286,109640.0,109620.0,0.04808]
[1756814770286,0.59326572,109630.0,109620.0,0.04808]
[1756814770594,0.60663286,109630.0,109620.0,0.08413]
[1756814770892,0.85872,109630.0,109620.0,0.04808]
[1756814771092,1.15535286,109630.0,109620.0,0.04808]
[1756814771294,1.49535286,109630.0,109620.0,0.04808]
[1756814771496,1.27021896,109630.0,109620.0,0.08413]
[1756814771794,0.93033896,109630.0,109620.0,0.33869]
[1756814771983,1.56811467,109630.0,109620.0,0.33869]
[1756814772185,0.36927467,109630.0,109620.0,0.33869]
[1756814772385,0.07249896,109630.0,109620.0,0.33869]
[1756814772581,0.07249896,109630.0,109620.0,0.99626571]
[1756814772887,0.36927467,109630.0,109620.0,0.99626571]
[1756814773094,0.73927467,109630.0,109620.0,0.99626571]
[1756814773290,0.74127467,109630.0,109620.0,0.33869]
[1756814773491,1.39885038,109630.0,109620.0,0.08869]
[1756814773687,1.03805038,109630.0,109620.0,0.05264]
[1756814773885,1.03805038,109630.0,109620.0,0.08869]
[1756814774085,0.44449896,109630.0,109620.0,0.08869]
[1756814774291,0.07449896,109630.0,109620.0,0.08869]
[1756814774491,0.37127467,109630.0,109620.0,0.99626571]
[1756814774688,0.07449896,109630.0,109620.0,1.36626571]
[1756814774992,0.07449896,109630.0,109620.0,0.69949]
[1756814775298,0.37127467,109630.0,109620.0,0.69949]
[1756814775489,0.07449896,109630.0,109620.0,0.69949]
[1756814775684,0.37127467,109630.0,109620.0,0.69949]
[1756814775884,0.07449896,109630.0,109620.0,0.69949]
[1756814776098,0.37127467,109630.0,109620.0,0.99626571]
[1756814776286,0.37127467,109630.0,109620.0,0.69949]
[1756814776687,1.00805038,109630.0,109620.0,0.44949]
[1756814777485,0.78549332,109630.0,109620.0,0.44949]
[1756814777701,0.41449896,109630.0,109620.0,0.44949]
[1756814777901,0.78549332,109630.0,109620.0,0.44949]
[1756814779199,1.39629332,109630.0,109620.0,0.00456]
[1756814779388,1.41721934,109630.0,109620.0,0.00456]
[1756814779895,1.39629332,109630.0,109620.0,0.00456]
[1756814780598,2.26149332,109630.0,109620.0,0.08869]
[1756814780808,0.80629332,109630.0,109620.0,0.08869]
[1756814781006,1.30049896,109630.0,109620.0,0.08869]
[1756814781301,2.00149332,109630.0,109620.0,0.08869]
[1756814781595,1.66049896,109630.0,109620.0,0.08869]
[1756814781793,2.03149332,109630.0,109620.0,0.08869]
[1756814782299,0.44549332,109630.0,109620.0,0.44949]
[1756814782495,1.31073332,109630.0,109620.0,0.08869]
[1756814782699,2.02153332,109630.0,109620.0,0.08869]
[1756814784099,2.02153332,109630.0,109620.0,0.00456]
[1756814784100,2.27153332,109630.0,109620.0,0.00456]
[1756814785492,2.27353332,109630.0,109620.0,0.00456]
[1756814785996,2.27353332,109630.0,109600.0,0.05061]
[1756814786199,2.27353332,109630.0,109590.0,0.02311]
[1756814786200,1.10278872,109610.0,109590.0,0.02311]
[1756814786499,1.98740872,109600.0,109590.0,0.02311]
[1756814786696,2.33740872,109600.0,109590.0,0.02311]
[1756814786896,2.33284872,109600.0,109580.0,0.39685]
[1756814787195,0.39013436,109590.0,109580.0,0.38391]
[1756814787396,0.01914,109580.0,109560.0,0.39966489]
[1756814787604,1.25565436,109570.0,109560.0,0.75774489]
[1756814787805,1.60565436,109570.0,109560.0,0.75774489]
[1756814788005,0.39013436,109570.0,109560.0,0.75774489]
[1756814788200,1.25581436,109570.0,109560.0,0.75774489]
[1756814788403,0.88026,109570.0,109560.0,0.75774489]
[1756814788601,0.74507708,109570.0,109560.0,0.75774489]
[1756814788898,0.74963708,109570.0,109560.0,0.75774489]
[1756814789205,0.74963708,109570.0,109560.0,1.00774489]
[1756814789206,0.89412272,109570.0,109560.0,1.00774489]
[1756814789406,1.64711708,109570.0,109560.0,1.00774489]
[1756814789804,1.71998377,109570.0,109560.0,1.00774489]
[1756814790394,1.72098377,109570.0,109560.0,0.75774489]
[1756814790594,1.72098377,109570.0,109560.0,0.05089489]
[1756814790801,2.45277813,109570.0,109560.0,0.05089489]
[1756814791003,2.70277813,109570.0,109550.0,0.05061]
[1756814791194,0.37099436,109560.0,109550.0,0.45949]
[1756814791399,1.08728007,109570.0,109560.0,0.08413]
[1756814791594,1.83827443,109570.0,109560.0,0.08413]
[1756814792005,1.45263443,109570.0,109560.0,0.44493]
[1756814792204,0.96882941,109570.0,109560.0,0.08413]
[1756814792402,1.33982377,109570.0,109560.0,0.08413]
[1756814792709,1.66982377,109570.0,109560.0,0.08413]
[1756814793006,1.66882377,109570.0,109560.0,0.08413]
[1756814793205,1.34082377,109570.0,109560.0,0.08413]
[1756814793403,1.66082377,109570.0,109560.0,0.44493]
[1756814793711,1.68054377,109570.0,109560.0,0.08413]
[1756814793907,1.34042377,109570.0,109560.0,0.44493]
[1756814794209,1.34042377,109570.0,109560.0,0.08413]
[1756814794210,1.66042377,109570.0,109560.0,0.08413]
[1756814794412,1.66042377,109570.0,109560.0,0.04808]
[1756814794708,1.66042377,109570.0,109550.0,0.40888]
[1756814794709,0.01914,109560.0,109550.0,0.40888]
[1756814794910,1.14112872,109560.0,109550.0,0.04808]
[1756814795112,1.50192872,109560.0,109550.0,0.04808]
[1756814795413,1.50192872,109560.0,109550.0,0.34873]
[1756814795414,0.38557436,109560.0,109550.0,0.34873]
[1756814795608,0.37828436,109560.0,109550.0,0.70953]
[1756814795802,0.37828436,109560.0,109550.0,0.34873]
[1756814796111,0.38128436,109560.0,109550.0,0.34873]
[1756814796310,0.75128436,109560.0,109550.0,0.70953]
[1756814796509,0.76313436,109560.0,109550.0,0.34873]
[1756814796709,0.76313436,109560.0,109550.0,0.09873]
[1756814796710,1.98901436,109560.0,109550.0,0.09873]
[1756814797010,2.36000872,109560.0,109550.0,0.04808]
[1756814797207,2.36000872,109560.0,109550.0,0.02311]
[1756814797407,0.75393436,109560.0,109550.0,0.09845]
[1756814797602,1.92409436,109560.0,109550.0,0.09845]
[1756814797804,1.92865436,109560.0,109550.0,0.02311]
[1756814798102,1.10393436,109560.0,109550.0,0.09845]
[1756814798298,1.96869436,109560.0,109550.0,0.09845]
[1756814798501,1.60789436,109560.0,109550.0,0.09845]
[1756814798712,1.96853436,109560.0,109550.0,0.09845]
[1756814799211,1.97833436,109560.0,109550.0,0.09845]
[1756814799808,1.97833436,109560.0,109550.0,0.04698]
[1756814800417,0.01914,109550.0,109540.0,0.08559]
[1756814800617,0.75013436,109550.0,109540.0,0.08559]
[1756814801110,0.75013436,109550.0,109540.0,0.04868]
[1756814801111,0.37099436,109550.0,109540.0,0.04868]
[1756814801312,1.24782,109560.0,109550.0,0.06324]
[1756814801507,1.23702,109560.0,109550.0,0.10015]
[1756814801714,1.96881436,109560.0,109550.0,0.10015]
[1756814802013,1.96681436,109560.0,109550.0,0.10015]
[1756814802714,1.61865436,109560.0,109550.0,0.10015]
[1756814802915,1.61765436,109560.0,109550.0,0.10015]
[1756814803115,1.61757436,109560.0,109550.0,0.10015]
[1756814803319,1.61757436,109560.0,109550.0,0.04868]
[1756814803516,1.24658,109560.0,109550.0,0.04868]
[1756814803717,1.61757436,109560.0,109550.0,0.08559]
[1756814803913,1.61757436,109560.0,109550.0,0.04868]
[1756814804219,1.98956872,109560.0,109550.0,0.04868]
[1756814804409,1.10937436,109560.0,109540.0,0.03691]
[1756814804612,0.39013436,109550.0,109540.0,0.08559]
[1756814804812,0.39013436,109550.0,109540.0,0.44639]
[1756814806024,0.39213436,109550.0,109540.0,0.44639]
[1756814807225,0.02214,109550.0,109540.0,0.44639]
[1756814807527,0.39313436,109550.0,109540.0,0.44639]
[1756814808521,0.02214,109550.0,109540.0,0.44639]
[1756814808825,0.39313436,109550.0,109540.0,0.44639]
[1756814810026,0.02214,109550.0,109540.0,0.44639]
[1756814810329,1.09393436,109550.0,109540.0,0.04868]
[1756814810533,1.11393436,109550.0,109540.0,0.01411605]
[1756814810833,1.97701436,109550.0,109540.0,0.06279605]
[1756814811327,1.97701436,109550.0,109540.0,0.01411605]
[1756814811532,0.01914,109540.0,109530.0,0.08563]
[1756814811719,0.75093436,109540.0,109530.0,0.10563]
[1756814812118,0.75093436,109540.0,109530.0,0.08563]
[1756814812632,0.39994,109540.0,109530.0,0.08563]
[1756814812832,0.77093436,109540.0,109530.0,4e-05]
[1756814813036,1.11293436,109540.0,109530.0,4e-05]
[1756814813242,1.11393436,109540.0,109530.0,0.04872]
[1756814813444,1.11393436,109540.0,109530.0,0.02485]
[1756814813638,0.75393436,109540.0,109530.0,4e-05]
[1756814813832,1.13393436,109540.0,109530.0,4e-05]
[1756814814038,1.13393436,109540.0,109530.0,0.02485]
[1756814814940,0.76294,109540.0,109530.0,0.04872]
[1756814815237,1.13393436,109540.0,109530.0,4e-05]
[1756814815440,1.13393436,109540.0,109530.0,0.02485]
[1756814815640,1.13393436,109540.0,109530.0,0.04872]
[1756814815941,1.13393436,109540.0,109530.0,0.08563]
[1756814816643,0.75393436,109540.0,109530.0,0.08563]
[1756814816942,1.94645436,109540.0,109530.0,4e-05]
[1756814817536,2.46754444,109540.0,109530.0,4e-05]
[1756814818645,2.17218296,109540.0,109530.0,0.02485]
[1756814818945,2.17318296,109540.0,109530.0,0.02485]
[1756814819443,2.17018296,109540.0,109530.0,0.02485]
[1756814819639,2.17418296,109540.0,109530.0,0.02485]
[1756814819844,2.17418296,109540.0,109530.0,0.08563]
[1756814819845,2.17666296,109540.0,109530.0,0.08563]
[1756814820043,2.17666296,109540.0,109530.0,4e-05]
[1756814820239,2.17666296,109540.0,109530.0,0.04872]
[1756814820433,1.84658296,109540.0,109530.0,0.08563]
[1756814821039,1.94684197,109540.0,109530.0,0.08563]
[1756814821945,2.30684197,109540.0,109530.0,4e-05]
[1756814822145,2.60420345,109540.0,109530.0,4e-05]
[1756814823943,0.01898,109510.0,109490.0,0.3608]
[1756814824135,1.24306,109510.0,109490.0,0.7108]
[1756814824340,0.60195296,109500.0,109490.0,0.43559]
[1756814824540,0.30459148,109510.0,109500.0,0.10015]
[1756814824735,0.32193927,109520.0,109500.0,0.97140148]
[1756814824942,0.33639927,109520.0,109510.0,0.44639]
[1756814825342,0.12023901,109510.0,109500.0,0.10015]
[1756814825846,0.10325901,109510.0,109500.0,0.71095]
[1756814826043,0.39962049,109510.0,109500.0,1.00831148]
[1756814826238,0.10225901,109510.0,109500.0,1.00831148]
[1756814826542,0.39862049,109510.0,109500.0,1.00831148]
[1756814826742,0.10125901,109510.0,109500.0,2.57046176]
[1756814827135,0.10325901,109510.0,109500.0,2.63579608]
[1756814827549,0.10325901,109510.0,109500.0,2.41259747]
[1756814828247,0.10325901,109510.0,109500.0,2.34726315]
[1756814828944,0.10325901,109510.0,109500.0,2.41278877]
[1756814829244,0.10325901,109510.0,109500.0,1.69991562]
[1756814829442,0.12223901,109510.0,109500.0,0.77095]
[1756814829749,0.10325901,109510.0,109500.0,1.88411]
[1756814829946,0.10325901,109510.0,109500.0,2.25563435]
[1756814830550,0.10325901,109510.0,109500.0,1.39247435]
[1756814830750,0.10325901,109510.0,109500.0,2.34698305]
[1756814831551,0.01898,109550.0,109540.0,0.08306]
[1756814831853,0.38565275,109560.0,109540.0,0.04904]
[1756814832048,0.38565275,109560.0,109550.0,0.45737]
[1756814832049,0.02033275,109560.0,109550.0,0.45737]
[1756814832241,0.40834365,109560.0,109550.0,0.45737]
[1756814832447,0.40834365,109560.0,109550.0,0.09657]
[1756814832652,0.65834365,109560.0,109550.0,0.04904]
[1756814832945,0.02033275,109560.0,109550.0,0.45737]
[1756814833151,0.02033275,109560.0,109550.0,1.32137]
[1756814833337,0.02933275,109560.0,109550.0,2.0316679]
[1756814833544,0.02933275,109560.0,109550.0,2.3416679]
[1756814833850,0.0203655,109580.0,109560.0,0.091253]
[1756814834043,0.02053376,109590.0,109580.0,0.08306]
[1756814834346,0.02460296,109610.0,109580.0,0.44386]
[1756814834548,0.02008296,109610.0,109600.0,0.45737]
[1756814835243,0.02008296,109610.0,109600.0,1.32233]
[1756814835552,0.02008296,109610.0,109600.0,0.45737]
[1756814835751,0.12034197,109610.0,109600.0,1.32217]
[1756814835949,0.12334197,109610.0,109600.0,1.32217]
[1756814836447,0.13780197,109610.0,109600.0,0.09657]
[1756814836648,0.00452,109590.0,109580.0,0.03702]
[1756814836845,0.01898,109590.0,109580.0,0.08606]
[1756814837045,0.3880109,109590.0,109580.0,0.08406]
[1756814837245,0.01898,109590.0,109580.0,0.08406]
[1756814837445,0.3880109,109590.0,109580.0,0.08406]
[1756814837647,0.3880109,109590.0,109580.0,0.44486]
[1756814837847,0.01898,109590.0,109580.0,0.44486]
[1756814838351,0.7488109,109590.0,109580.0,0.08306]
[1756814838755,0.01898,109580.0,109570.0,0.04904]
[1756814838953,0.01898,109580.0,109570.0,0.08306]
[1756814839154,0.3880109,109580.0,109570.0,0.04904]
[1756814839451,0.6380109,109580.0,109570.0,0.02498]
[1756814839757,0.01898,109560.0,109550.0,0.40833]
[1756814839956,0.3880109,109560.0,109550.0,0.47335]
[1756814840150,0.3880109,109560.0,109550.0,0.50737]
[1756814840351,0.48526991,109560.0,109550.0,0.50737]
[1756814840855,0.48626991,109560.0,109550.0,0.51337]
[1756814841050,0.48626991,109560.0,109550.0,0.11855]
[1756814841358,1.11706991,109560.0,109550.0,0.006]
[1756814841548,1.09706991,109560.0,109550.0,0.006]
[1756814841747,1.41706991,109560.0,109550.0,0.006]
[1756814842057,1.46806991,109560.0,109550.0,0.007]
[1756814842454,2.33634991,109560.0,109550.0,0.00548]
[1756814844152,2.45600286,109560.0,109550.0,0.00548]
[1756814845757,2.45448286,109560.0,109520.0,0.41294681]
[1756814845961,0.3690309,109530.0,109520.0,0.52198681]
[1756814846157,0.3608,109540.0,109520.0,0.52198681]
[1756814846356,0.3690309,109530.0,109520.0,0.52198681]
[1756814846759,0.7298309,109530.0,109520.0,0.16118681]
[1756814846957,1.29896819,109530.0,109510.0,0.04904]
[1756814847157,0.3690309,109520.0,109510.0,0.09306]